Workbook

Sheet 7調査相談・複写
A1: ７ 調査相談・複写
A3: 館 名 | C3: 調査相談件数 | H3: レファレンス共同ＤＢ | K3: 複写サ－ビス | R3: 複写機 操作者
C4: 口頭 | D4: 電話 | E4: 文書 (FAX含） | F4: メ-ル | G4: 計 | H4: 参加 | I4: 登録件数 | K4: 件数 | L4: 枚数 | M4: 1枚当たり料金（円） | R4: 1 図書館 2 利用者 3 業 者 4 組合せ
I5: 昨年度 | J5: 累計 | M5: A3 | N5: B4 | O5: A4 | P5: B5 | Q5: ｶﾗ-
G6: 件 | J6: 件
A7: 県立長野 | C7: 2575 | D7: 2415 | E7: 91 | F7: 313 | G7: =SUM(C7:F7) -> 5394 | H7: 有 | I7: 226 | J7: 1857 | K7: 2920 | L7: 43843 | M7: 10 | N7: 10 | O7: 10 | P7: 10 | Q7: 30 | R7: 2
A8: 長野市立長野 | C8: 947 | D8: 359 | E8: 6 | F8: 3 | G8: =SUM(C8:F8) -> 1315 | H8: 有 | I8: 19 | J8: 972 | K8: 1217 | L8: 7422 | M8: 10 | N8: 10 | O8: 10 | P8: 10 | Q8: - | R8: 1
A9: 長野市立南部 | C9: 1278 | D9: - | E9: - | F9: - | G9: =SUM(C9:F9) -> 1278 | H9: 有 | I9: 0 | J9: 0 | K9: 558 | L9: 3041 | M9: 10 | N9: 10 | O9: 10 | P9: 10 | Q9: - | R9: 1
A10: 松本市中央 | C10: 3134 | D10: 140 | E10: 11 | G10: =SUM(C10:F10) -> 3285 | H10: 有 | I10: 29 | J10: 180 | K10: 1661 | L10: 13383 | M10: 10 | N10: 10 | O10: 10 | P10: 10 | R10: 2
B11: あがたの森 | C11: 1267 | D11: 70 | E11: 0 | G11: 1337 | H11: 無 | K11: 20 | L11: 49 | M11: 10 | N11: 10 | O11: 10 | P11: 10 | R11: 2
B12: 鎌田 | C12: 203 | D12: 9 | E12: 0 | G12: 212 | H12: 無 | K12: 25 | L12: 105 | M12: 10 | N12: 10 | O12: 10 | P12: 10 | R12: 1
B13: 南部 | C13: 613 | D13: 16 | E13: 0 | G13: 629 | H13: 無 | K13: 66 | L13: 359 | M13: 10 | N13: 10 | O13: 10 | P13: 10 | R13: 1
B14: 寿台 | C14: 628 | D14: 21 | E14: 1 | G14: 650 | H14: 無 | K14: 27 | L14: 43 | M14: 10 | N14: 10 | O14: 10 | P14: 10 | R14: 1
B15: 本郷 | C15: 541 | D15: 2 | E15: 0 | G15: =SUM(C15:F15) -> 543 | H15: 無 | K15: 39 | L15: 150 | M15: 10 | N15: 10 | O15: 10 | P15: 10 | R15: 1
B16: 中山文庫 | C16: 414 | D16: 10 | E16: 0 | G16: 424 | H16: 無 | K16: 8 | L16: 73 | M16: 10 | N16: 10 | O16: 10 | P16: 10 | R16: 1
B17: 島内 | C17: 599 | D17: 30 | E17: 0 | G17: 629 | H17: 無 | K17: 27 | L17: 68 | M17: 10 | N17: 10 | O17: 10 | P17: 10 | R17: 1
B18: 空港 | C18: 749 | D18: 93 | E18: 0 | G18: 842 | H18: 無 | K18: 16 | L18: 170 | M18: 10 | N18: 10 | O18: 10 | P18: 10 | R18: 1
B19: 波田 | C19: 380 | D19: 1 | E19: 0 | G19: 381 | H19: 無 | K19: 153 | L19: 391 | M19: 10 | N19: 10 | O19: 10 | P19: 10 | R19: 1
B20: 梓川 | C20: 279 | D20: 4 | E20: 0 | G20: 283 | H20: 無 | K20: 42 | L20: 192 | M20: 10 | N20: 10 | O20: 10 | P20: 10 | R20: 1
A21: 上田市立上田 | C21: 1081 | D21: 157 | G21: =SUM(C21:F21) -> 1238 | H21: 無 | K21: 1429 | L21: 11093 | M21: 10 | N21: 10 | O21: 10 | P21: 10 | R21: 1
A22: 上田市立丸子 | C22: 1675 | D22: 201 | E22: 0 | F22: 0 | G22: 1876 | H22: 無 | K22: 241 | L22: 1101 | M22: 10 | N22: 10 | O22: 10 | P22: 10 | R22: 1
A23: 上田情報ライブラリ- | C23: 218 | D23: 20 | E23: 0 | F23: 1 | G23: =SUM(C23:F23) -> 239 | H23: 有 | I23: 0 | J23: 66 | K23: - | L23: 2273 | M23: 10 | O23: 10 | R23: 1
A24: 上 田 市 立 真 田 | C24: 108 | D24: 20 | E24: 0 | F24: 0 | G24: 128 | H24: 無 | I24: 0 | J24: 0 | K24: 81 | L24: 403 | M24: 10 | N24: 10 | O24: 10 | P24: 10 | Q24: 10 | R24: 1
A25: 市立岡谷 | C25: 555 | D25: 2 | E25: 2 | F25: 3 | G25: 562 | H25: 無 | K25: 306 | L25: 2277 | M25: 10 | N25: 10 | O25: 10 | P25: 10 | Q25: A4 20 A3 40 | R25: 1
A26: 飯田市立中央 | C26: 1889 | D26: 72 | E26: 1 | F26: 12 | G26: 1974 | H26: 有 | I26: 0 | J26: 0 | K26: 1678 | L26: 11772 | M26: 10 | N26: 10 | O26: 10 | P26: 10 | Q26: 50 | R26: 1
B27: 羽場分館 | G27: 0 | H27: 無
B28: 丸山分館 | G28: 0 | H28: 無
B29: 東野分館 | G29: 0 | H29: 無
B30: 座光寺分館 | G30: 0 | H30: 無
B31: 松尾分館 | G31: 0 | H31: 無
B32: 下久堅分館 | G32: 0 | H32: 無
B33: 上久堅分館 | G33: 0 | H33: 無
B34: 千代分館 | G34: 0 | H34: 無
B35: 龍江分館 | G35: 0 | H35: 無
B36: 竜丘分館 | G36: 0 | H36: 無
B37: 川路分館 | G37: 0 | H37: 無
B38: 三穂分館 | G38: 0 | H38: 無
B39: 山本分館 | G39: 0 | H39: 無
B40: 伊賀良分館 | G40: 0 | H40: 無
B41: 上村分館 | G41: 0 | H41: 無
B42: 南信濃分館 | G42: 0 | H42: 無
A43: 飯田市立上郷 | C43: 168 | D43: 5 | E43: 0 | F43: 0 | G43: 173 | H43: 有 | I43: 0 | J43: 0 | K43: 217 | L43: 693 | M43: 10 | N43: 10 | O43: 10 | P43: 10 | R43: 1
A44: 飯田市立鼎 | C44: 169 | D44: 5 | E44: 0 | F44: 0 | G44: 174 | H44: 有 | I44: 0 | J44: 0 | K44: 73 | L44: 220 | M44: 10 | N44: 10 | O44: 10 | P44: 10 | R44: 1
A45: 諏訪市 | C45: 1987 | D45: 445 | E45: 0 | F45: 4 | G45: 2436 | H45: 無 | K45: 534 | L45: 3717 | M45: 10 | N45: 10 | O45: 10 | P45: 10 | Q45: 40 | R45: 1
B46: 信州風樹文庫 | C46: 643 | D46: 399 | E46: 0 | F46: 0 | G46: 1042 | H46: 無 | K46: 5 | L46: 63 | M46: 10 | N46: 10 | O46: 10 | P46: 10 | R46: 1
A47: 市立須坂 | C47: 4090 | D47: 69 | E47: 7 | F47: 0 | G47: 4166 | H47: 有 | I47: 6 | J47: 11 | K47: 350 | L47: 2592 | M47: 10 | N47: 10 | O47: 10 | P47: 10 | R47: 1
A48: 市立小諸 | C48: 1398 | D48: 20 | E48: 2 | F48: 0 | G48: 1420 | H48: 有 | I48: 12 | J48: 16 | K48: 862 | L48: 6617 | M48: 10 | N48: 10 | O48: 10 | P48: 10 | Q48: 50 | R48: 4
A49: 伊那市立伊那 | C49: 556 | G49: 556 | H49: 無 | K49: 600 | L49: 4296 | M49: 10 | N49: 10 | O49: 10 | P49: 10 | Q49: 100 | R49: 1
A50: 伊那市立高遠町 | C50: 409 | D50: 35 | E50: 4 | F50: 8 | G50: 456 | H50: 無 | K50: 108 | L50: 1159 | M50: 10 | N50: 10 | O50: 10 | P50: 10 | Q50: 100 | R50: 1
A51: 駒ケ根市立 | C51: 1450 | D51: 148 | E51: 0 | F51: 4 | G51: 1602 | H51: 有 | I51: 0 | J51: 1 | K51: 344 | L51: 3334 | M51: 10 | N51: 10 | O51: 10 | P51: 10 | Q51: 100 | R51: 1
B52: 東伊那分館 | C52: - | G52: 0 | H52: 無
B53: 中沢分館 | C53: - | G53: 0 | H53: 無
A54: 中野市立 | C54: 1306 | D54: 0 | E54: 0 | F54: 0 | G54: 1306 | H54: 有 | I54: 0 | J54: 0 | K54: 443 | L54: 2846 | M54: 10 | N54: 10 | O54: 10 | P54: 10 | Q54: 20 | R54: 1
B55: 北部分館 | G55: 0 | H55: 無
B56: 西部分館 | G56: 0 | H56: 無
B57: 豊田分館 | C57: 164 | D57: 2 | E57: 0 | F57: 0 | G57: 166 | H57: 無 | K57: 3 | L57: 3 | M57: 10 | N57: 10 | O57: 10 | P57: 10 | Q57: 20 | R57: 1
A58: 市立大町 | C58: 1160 | D58: 48 | E58: 0 | F58: 0 | G58: 1208 | H58: 無 | K58: 120 | L58: 589 | M58: 10 | N58: 10 | O58: 10 | P58: 10 | Q58: 20 | R58: 2
A59: 市立飯山 | C59: 519 | G59: 519 | H59: 無 | K59: 239 | L59: 2393 | M59: 10 | N59: 10 | O59: 10 | P59: 10 | Q59: 50 | R59: 1
A60: 茅野市 | C60: 2000 | D60: 60 | E60: 3 | F60: 0 | G60: 2063 | H60: 有 | I60: 0 | J60: 31 | K60: 293 | L60: 1577 | M60: 10 | N60: 10 | O60: 10 | P60: 10 | Q60: 50 | R60: 2
A61: 塩尻市立 | C61: 767 | D61: 29 | E61: 5 | F61: - | G61: 801 | H61: 有 | I61: 172 | J61: 1016 | K61: - | L61: 6133 | M61: 10 | N61: 10 | O61: 10 | P61: 10 | Q61: 50 | R61: 1
B62: 広丘図書館 | C62: 124 | D62: 5 | E62: 0 | F62: - | G62: 129 | H62: 無 | L62: 388 | M62: 10 | N62: 10 | O62: 10 | P62: 10 | Q62: 50 | R62: 1
B63: 北小野分館 | C63: 68 | D63: 1 | E63: 0 | F63: - | G63: 69 | H63: 無
B64: 片丘分館 | C64: 8 | D64: 0 | E64: 0 | F64: - | G64: 8 | H64: 無
B65: 塩尻東分館 | C65: 72 | G65: 72 | H65: 無
B66: 宗賀分館 | C66: 354 | D66: 0 | E66: 0 | F66: - | G66: 354 | H66: 無
B67: 洗馬分館 | C67: 523 | D67: 6 | E67: 0 | F67: - | G67: 529 | H67: 無
B68: 吉田分館 | C68: 27 | D68: 0 | E68: 0 | F68: - | G68: 27 | H68: 無
B69: 楢川分館 | C69: 17 | D69: 0 | E69: 0 | F69: - | G69: 17 | H69: 無
A70: 佐久市立中央 | C70: 675 | D70: 74 | E70: 10 | F70: 5 | G70: 764 | H70: 有 | I70: 1 | J70: 1 | K70: 485 | L70: 2599 | M70: 10 | N70: 10 | O70: 10 | P70: 10 | R70: 1
B71: サングリモ中込 | C71: 491 | D71: 597 | E71: 0 | F71: 0 | G71: 1088 | H71: 無 | K71: 11 | L71: 48 | M71: 10 | N71: 10 | O71: 10 | P71: 10 | R71: 1
A72: 佐久市立臼田 | C72: 733 | D72: 48 | E72: 0 | F72: 0 | G72: 781 | H72: 無 | K72: 46 | L72: 174 | M72: 10 | N72: 10 | O72: 10 | P72: 10 | R72: 1
A73: 佐久市立浅科 | C73: 151 | D73: 3 | G73: =SUM(C73:F73) -> 154 | H73: 無 | K73: 54 | L73: 218 | M73: 10 | N73: 10 | O73: 10 | P73: 10 | R73: 1
A74: 佐久市立望月 | C74: 153 | D74: 29 | G74: 182 | H74: 有 | I74: 0 | K74: 74 | L74: 820 | M74: 10 | N74: 10 | O74: 10 | P74: 10 | R74: 1
A75: 千曲市立更埴 | C75: 134 | D75: 10 | E75: 0 | F75: 0 | G75: 144 | H75: 無 | I75: 0 | J75: 0 | K75: 177 | L75: 794 | M75: 10 | N75: 10 | O75: 10 | P75: 10 | Q75: B4まで50円 A3 80円 | R75: 1
B76: 更埴西 | C76: 4 | D76: 5 | E76: 0 | F76: 0 | G76: 9 | H76: 無 | K76: 12 | L76: 30 | M76: 10 | N76: 10 | O76: 10 | P76: 10 | Q76: B4まで50円 A3 80円 | R76: 1
A77: 千曲市立戸倉 | C77: 124 | D77: 22 | E77: 2 | F77: 0 | G77: 148 | H77: 無 | I77: 0 | J77: 0 | K77: 64 | L77: 309 | M77: 10 | N77: 10 | O77: 10 | P77: 10 | Q77: B4まで50円 A3 80円 | R77: 1
A78: 東御市立 | C78: 166 | D78: 4 | G78: 170 | H78: 無 | I78: - | J78: - | K78: 371 | L78: 2172 | M78: 10 | N78: 10 | O78: 10 | P78: 10 | R78: 2
A79: 安曇野市中央 | C79: 2166 | D79: 42 | E79: 13 | F79: 1 | G79: 2222 | H79: 有 | I79: 59 | J79: 153 | K79: 598 | L79: 3750 | M79: 10 | N79: 10 | O79: 10 | P79: 10 | Q79: 20 | R79: 4
B80: 豊科 | C80: 970 | D80: 57 | E80: 0 | F80: 0 | G80: 1027 | H80: 有 | K80: 243 | L80: 1284 | M80: 10 | N80: 10 | O80: 10 | P80: 10 | Q80: 20 | R80: 4
B81: 三郷 | C81: 429 | D81: 19 | E81: 1 | F81: 0 | G81: 449 | H81: 有 | K81: 98 | L81: 443 | M81: 10 | N81: 10 | O81: 10 | P81: 10 | Q81: 20 | R81: 4
B82: 堀金 | C82: 126 | D82: 2 | E82: 0 | F82: 0 | G82: 128 | H82: 有 | K82: 24 | L82: 172 | M82: 10 | N82: 10 | O82: 10 | P82: 10 | Q82: 20 | R82: 4
B83: 明科 | C83: 394 | D83: 16 | E83: 0 | F83: 0 | G83: 410 | H83: 有 | K83: 49 | L83: 269 | M83: 10 | N83: 10 | O83: 10 | P83: 10 | Q83: 20 | R83: 4
A84: 小海町 | C84: 20 | D84: 5 | E84: 3 | F84: 0 | G84: =SUM(C84:F84) -> 28 | H84: 無 | I84: 0 | J84: 0 | K84: 38 | L84: 559 | M84: 10 | N84: 10 | O84: 10 | P84: 10 | Q84: 100 | R84: 1
A85: 佐久穂町立 | C85: 577 | G85: 577 | H85: 無 | K85: 85 | L85: 829 | M85: 10 | N85: 10 | O85: 10 | P85: 10 | Q85: 50 | R85: 1
A86: 軽井沢町立中軽井沢 | C86: 1293 | D86: 35 | E86: 4 | F86: 1 | G86: 1333 | H86: 有 | I86: 29 | J86: 29 | K86: 537 | L86: 2910 | M86: 10 | O86: 10 | Q86: 50 | R86: 2
A87: 軽井沢町立離山 | G87: =SUM(C87:F87) -> 0 | H87: 無 | K87: 24 | L87: 375 | M87: 10 | O87: 10 | R87: 1
A88: 御代田町立 | C88: 76 | D88: 0 | G88: 76 | H88: 無 | L88: 610 | M88: 10 | N88: 10 | O88: 10 | P88: 10 | R88: 2
A89: 下諏訪町立 | C89: 224 | F89: 6 | G89: 230 | H89: 無 | K89: 440 | L89: 2031 | M89: 10 | N89: 10 | O89: 10 | P89: 10 | Q89: 50 | R89: 4
A90: 富士見町 | C90: - | D90: - | E90: - | F90: - | G90: 0 | H90: 無 | K90: 237 | L90: 1009 | M90: 10 | N90: 10 | O90: 10 | P90: 10 | Q90: 50 | R90: 2
A91: 辰野町立辰野 | C91: 263 | D91: 10 | E91: 1 | G91: 274 | H91: 無 | K91: 256 | L91: 939 | M91: 10 | N91: 10 | O91: 10 | P91: 10 | Q91: 30 | R91: 1
A92: 箕輪町 | C92: 778 | D92: 64 | E92: 0 | F92: 0 | G92: 842 | H92: 無 | K92: 77 | L92: 537 | M92: 10 | N92: 10 | O92: 10 | P92: 10 | Q92: 10 | R92: 1
A93: 飯島町 | C93: 0 | D93: 0 | E93: 0 | F93: 0 | G93: 0 | H93: 無 | K93: 33 | L93: 199 | M93: 10 | N93: 10 | O93: 10 | P93: 10 | Q93: 100 | R93: 1
A94: 松川町 | C94: 120 | D94: 18 | E94: 0 | F94: 0 | G94: 138 | H94: 無 | K94: 145 | L94: 379 | M94: 0 | N94: 0 | O94: 0 | P94: 0 | Q94: 0 | R94: 1
A95: 高森町立 | C95: 114 | D95: 10 | E95: 1 | F95: 4 | G95: 129 | H95: 無 | K95: ‐ | L95: ‐ | M95: 10 | N95: 10 | O95: 10 | P95: 10 | Q95: 50 | R95: 1
A96: 阿南町立 | C96: 0 | D96: 0 | E96: 0 | F96: 0 | G96: 0 | H96: 無 | I96: 0 | J96: 0 | K96: 8 | L96: 24 | M96: 30 | N96: 30 | O96: 20 | P96: 20 | R96: 1
A97: 木曽町 | C97: 747 | D97: - | E97: - | F97: - | G97: 747 | H97: 無 | K97: 596 | L97: 1229 | M97: 10 | N97: 10 | O97: 10 | P97: 10 | Q97: 70 | R97: 1
B98: 日義分館
B99: 開田分館
B100: 三岳分館
A101: 池田町 | C101: 464 | D101: 16 | E101: 0 | F101: 0 | G101: 480 | H101: 無 | I101: 0 | J101: 0 | K101: 50 | L101: 159 | M101: 30 | N101: 30 | O101: 30 | P101: 30 | R101: 1
A102: 坂城町立 | C102: 23 | D102: 0 | G102: 23 | H102: 無 | K102: 42 | L102: 223 | M102: 10 | N102: 10 | O102: 10 | P102: 10 | Q102: 50 | R102: 1
A103: 小布施町立 | C103: 54 | D103: 0 | E103: 0 | F103: 0 | G103: 54 | H103: 無 | I103: 0 | J103: 0 | K103: 128 | L103: 524 | M103: 10 | N103: 10 | O103: 10 | P103: 10 | Q103: 80 | R103: 1
A104: 山ノ内町立蟻川 | G104: 0 | H104: 無 | K104: 35 | L104: 234 | M104: 10 | O104: 10 | R104: 1
A105: 川上村文化センタ- | G105: 0 | H105: 無 | K105: - | L105: - | M105: 20 | N105: 20 | O105: 20 | P105: 20 | Q105: 150 | R105: 1
A106: 南牧村 | C106: 5 | G106: 5 | H106: 無 | K106: 6 | L106: 144 | O106: 20 | Q106: 35 | R106: 1
A107: 南相木村立ふれあい | G107: 0 | H107: 無 | K107: 26 | L107: 363 | M107: 10 | N107: 10 | O107: 10 | P107: 10 | Q107: 30 | R107: 1
A108: 青木村 | C108: 199 | D108: 5 | G108: 204 | H108: 無 | K108: 36 | L108: 253 | M108: 10 | N108: 10 | O108: 10 | P108: 10 | Q108: 100 | R108: 1
A109: 原村 | C109: 30 | D109: 0 | E109: 0 | F109: 0 | G109: 30 | H109: 無 | I109: 0 | J109: 0 | K109: 61 | L109: 251 | M109: 20 | N109: 20 | O109: 20 | P109: 20 | Q109: 50 | R109: 1
A110: 南箕輪村 | C110: 96 | G110: 96 | H110: 無 | K110: 76 | L110: 179 | M110: 10 | N110: 10 | O110: 10 | P110: 10 | Q110: 20 | R110: 1
A111: 中川村 | G111: 0 | H111: 無 | K111: 26 | L111: 61 | M111: 10 | N111: 10 | O111: 10 | P111: 10 | Q111: 100 | R111: 1
A112: 宮田村 | C112: 338 | D112: 18 | G112: 356 | H112: 無 | K112: 53 | L112: 222 | M112: 10 | N112: 10 | O112: 10 | P112: 10 | Q112: 50 | R112: 1
A113: 阿智村 | C113: 150 | D113: 30 | F113: 20 | G113: =SUM(C113:F113) -> 200 | H113: 無 | K113: ― | L113: ― | M113: 10 | N113: 10 | O113: 10 | P113: 10 | Q113: 50 | R113: 1
A114: 根羽村立 | G114: 0 | H114: 無
A115: 下條村立 | C115: 1034 | D115: 10 | E115: 0 | F115: 0 | G115: 1044 | H115: 無 | K115: 36 | L115: 326 | M115: 10 | N115: 10 | O115: 10 | P115: 10 | R115: 1
A116: 天龍村 | C116: 4 | D116: 2 | E116: 0 | F116: 0 | G116: 6 | H116: 無 | I116: 0 | J116: 0 | K116: 5 | L116: 100 | M116: 25 | N116: 25 | O116: 25 | P116: 25 | Q116: 105 | R116: 1
A117: 喬木村立椋鳩十記念 | C117: 150 | D117: 12 | E117: 0 | F117: 0 | G117: 162 | H117: 無 | K117: 24 | L117: 40 | M117: 10 | N117: 10 | O117: 10 | P117: 10 | Q117: 100 | R117: 1
A118: 豊丘村 | C118: 144 | D118: 9 | E118: 0 | F118: 3 | G118: 156 | H118: 無 | K118: 47 | L118: 228 | M118: 10 | N118: 10 | O118: 10 | P118: 10 | Q118: 100(A3B4)50(A4B5) | R118: 1
A119: 大桑村 | C119: 39 | D119: 12 | G119: 51 | H119: 無 | K119: 10 | L119: 45 | M119: 10 | N119: 10 | O119: 10 | P119: 10 | Q119: 50 | R119: 1
A120: 山形村 | C120: 30 | G120: 30 | H120: 無 | K120: 23 | L120: 123 | M120: 10 | N120: 10 | O120: 10 | P120: 10 | Q120: 50 | R120: １
A121: 村立朝日村 | C121: 105 | D121: 20 | E121: 0 | F121: 0 | G121: 125 | H121: 無 | K121: 10 | L121: 35 | M121: 10 | N121: 10 | O121: 10 | P121: 10 | Q121: 20 | R121: 1
A122: 筑北村 | C122: 721 | D122: 20 | G122: =SUM(C122:F122) -> 741 | H122: 無 | K122: 17 | L122: 36 | M122: 10 | N122: 10 | O122: 10 | P122: 10 | Q122: 70 | R122: 1
A123: 松川村 | C123: 180 | D123: 9 | E123: 0 | G123: =SUM(C123:F123) -> 189 | H123: 有 | I123: 0 | J123: 0 | K123: 64 | L123: 218 | M123: 10 | N123: 10 | O123: 10 | P123: 10 | Q123: 80 | R123: 1
A124: 白馬村 | C124: 435 | D124: 113 | E124: 0 | F124: 11 | G124: =SUM(C124:F124) -> 559 | H124: 有 | I124: 0 | J124: 9 | K124: 23 | L124: 104 | M124: 10 | N124: 10 | O124: 10 | P124: 10 | Q124: 50 | R124: 1
A125: 小谷村 | C125: 13 | G125: =SUM(C125:F125) -> 13 | H125: 無 | K125: 12 | L125: 116 | M125: 10 | N125: 10 | O125: 10 | P125: 10 | Q125: 50 | R125: 1
A126: ライブラリ-８２ | C126: 12 | G126: =SUM(C126:F126) -> 12 | H126: 有 | I126: 0 | J126: 16 | K126: 17 | L126: 426 | M126: 10 | N126: 10 | O126: 10 | P126: 10 | Q126: 50 | R126: 1
A127: 合計 | C127: =SUM(C7:C126) -> 52266 | D127: =SUM(D7:D126) -> 6265 | E127: =SUM(E7:E126) -> 168 | F127: =SUM(F7:F126) -> 399 | G127: =SUM(G7:G126) -> 59098 | H127: =COUNTIF(H7:H126,"○") -> 0 | J127: =SUM(J7:J126) -> 4358 | K127: =SUM(K7:K126) -> 20314 | L127: =SUM(L7:L126) -> 163950
A129: ※1 調査相談件数統計を取っていない館も空欄とし、合計値を０としました。
